fUST/lending_fUST_20240412
["ID","MTS","AMOUNT","RATE_DAILY","PERIOD"]
[322278675,1712929845324,-1000.0,0.00074987,4]
[322278676,1712929845334,-1000.0,0.00074987,3]
[322278677,1712929845343,-1000.0,0.00074987,2]
[322278678,1712929845353,-155.37960027,0.00074998,2]
[322278679,1712929845362,-386.01217285,0.00074999,7]
[322278680,1712929845372,-500000.0,0.00075,10]
[322278681,1712929845382,-992.82515682,0.00075,120]
[322278682,1712929845392,-1000.0,0.00075649,120]
[322278683,1712929845401,-1000.0,0.00075987,5]
[322278684,1712929845413,-1000.0,0.00075987,4]
[322278685,1712929845422,-1000.0,0.00075987,3]
[322278686,1712929845432,-1564.58331105,0.00076,2]
[322278687,1712929845442,-172.776604,0.00076103,120]
[322278688,1712929845451,-1000.0,0.00076987,5]
[322278689,1712929845461,-1000.0,0.00076987,4]
[322278690,1712929845470,-905.0,0.00077175,120]
[322278691,1712929845480,-165.655479,0.0007721,120]
[322278692,1712929845489,-1000.0,0.00077987,5]
[322278693,1712929845499,-50059.999999,0.00078,60]
[322278694,1712929845509,-1094.0,0.0007889,94]
[322278695,1712929845519,-351.727026,0.00079308,120]
[322278696,1712929845528,-198.016785,0.00079308,120]
[322278697,1712929845538,-281.584071,0.00079308,120]
[322278698,1712929845549,-320.1732153,0.00079863,60]
[322278699,1712929845559,-153.0,0.00079863,60]
[322278700,1712929845568,-659.88134851,0.0008,50]
[322278701,1712929845577,-556.55882317,0.0008,120]
[322278702,1712929845586,-250.0,0.0008,120]
[322278703,1712929845596,-3685.88599054,0.0008,2]
[322278704,1712929845605,-16451.82121977,0.0008,120]
[322278705,1712929845615,-992.82515682,0.0008,120]
[322278706,1712929845625,-300.0,0.0008,105]
[322278707,1712929845635,-12411.22371274,0.0008,120]
[322278709,1712929845646,-181.79359079,0.00081034,120]
[322278710,1712929845655,-300.0,0.000815,106]
[322278711,1712929845668,-151.0,0.00082685,120]
[322278712,1712929845678,-300.0,0.00083,107]
[322278713,1712929845687,-300.0,0.000845,108]
[322278714,1712929845697,-197.0,0.0008468,35]
[322278716,1712929845706,-197.0,0.0008469,35]
[322278718,1712929845717,-67573.92746062,0.00085,30]
[322278721,1712929845768,-491.28762039,0.00085,30]
[322278724,1712929845781,-17130.16129442,0.00085,30]
[322278726,1712929845793,-1510.6162105,0.00085,30]
[322278729,1712929845811,-991.96,0.00056438,120]
[322278731,1712929845821,-313388.07723125,0.00085,30]
[322278789,1712929846398,-500.0,0.00054794,120]
[322278791,1712929846410,-188.88867481,0.00054795,120]
[322278793,1712929846420,-188.88867481,0.00054795,120]
[322278795,1712929846430,-188.88867481,0.00054795,120]
[322278797,1712929846440,-188.88867481,0.00054795,120]
[322278799,1712929846450,-991.96,0.0005726,120]
[322278801,1712929846459,-991.96,0.00058082,120]
[322278802,1712929846469,-991.96,0.00058904,120]
[322278804,1712929846479,-310.71707969,0.00059726,120]
[322278807,1712929846492,-681.24292031,0.00059726,120]
[322278809,1712929846502,-991.96,0.00060547,120]
[322278810,1712929846511,-991.96,0.00061369,120]
[322278811,1712929846521,-2339.86768338,0.00085,30]
[322278812,1712929846540,-188.88867481,0.00054795,120]
[322278813,1712929846550,-66420.67276123,0.00085,30]
[322278814,1712929846635,-319.91534022,0.00054793,30]
[322278815,1712929846645,-122.08465978,0.00054794,4]
[322278816,1712929846661,-451.61545815,0.00054794,4]
[322278817,1712929846671,-188.88867481,0.00054795,120]
[322278818,1712929846681,-188.88867481,0.00054795,120]
[322278819,1712929846692,-188.88867481,0.00054795,120]
[322278820,1712929846702,-188.88867481,0.00054795,120]
[322278821,1712929846712,-188.88867481,0.00054795,120]
[322278822,1712929846723,-188.88867481,0.00054795,120]
[322278823,1712929846732,-991.96,0.00062191,120]
[322278824,1712929846743,-991.96,0.00063013,120]
[322278825,1712929846753,-991.96,0.00063835,120]
[322278826,1712929846763,-991.96,0.00064657,120]
[322278827,1712929846773,-991.96,0.00065479,120]
[322278828,1712929846783,-991.96,0.00066301,120]
[322278829,1712929846793,-991.96,0.00067123,120]
[322278830,1712929846803,-31145.38973821,0.00085,30]
[322278831,1712929846814,-992.82515682,0.00085,120]
[322278832,1712929846823,-351.727026,0.00085076,120]
[322278833,1712929846833,-198.016785,0.00085076,120]
[322278834,1712929846843,-281.584071,0.00085076,120]
[322278835,1712929846852,-151.0,0.0008531,120]
[322278836,1712929846862,-300.0,0.00086,109]
[322278837,1712929846871,-165.655479,0.00087173,120]
[322278838,1712929846881,-500.0,0.000875,110]
[322278839,1712929846891,-24104.11891152,0.00088,120]
[322278840,1712929846901,-172.776604,0.0008828,120]
[322278841,1712929846913,-151.6789409,0.0008999,120]
[322278842,1712929846925,-992.82515682,0.0009,120]
[322278843,1712929846935,-351.727026,0.00090843,120]
[322278844,1712929846945,-198.016785,0.00090843,120]
[322278845,1712929846955,-281.584071,0.00090843,120]
[322278846,1712929846965,-6045.24525439,0.0009488,60]
[322278847,1712929846974,-157.288466,0.0009488,120]
[322278848,1712929846984,-151.0,0.0009488,120]
[322278849,1712929846994,-151.0,0.0009488,30]
[322278850,1712929847003,-151.937805,0.0009488,30]
[322278851,1712929847013,-151.0,0.0009488,120]
[322278852,1712929847023,-992.82515682,0.00095,120]
[322278853,1712929847032,-351.727026,0.00096611,120]
[322278854,1712929847043,-198.016785,0.00096611,120]
[322278855,1712929847054,-281.584071,0.00096611,120]
[322278856,1712929847064,-165.655479,0.00097136,120]
[322278857,1712929847074,-6836.55184278,0.000975,30]
[322278858,1712929847084,-26197.25337607,0.00098,120]
[322278859,1712929847094,-30000.0,0.00099,30]
[322278860,1712929847105,-5415.00973844,0.000999,120]
[322278861,1712929847123,-188.88867481,0.00054795,120]
[322278862,1712929847133,-924.80157208,0.000999,120]
[322278863,1712929847208,-317.69625636,0.00054792,4]
[322278864,1712929847218,-500.0,0.00054794,120]
[322278865,1712929847228,-188.88867481,0.00054795,120]
[322278866,1712929847238,-188.88867481,0.00054795,120]
[322278867,1712929847248,-188.88867481,0.00054795,120]
[322278868,1712929847257,-188.88867481,0.00054795,120]
[322278869,1712929847267,-188.88867481,0.00054795,120]
[322278870,1712929847276,-991.96,0.00067945,120]
[322278871,1712929847286,-991.96,0.00068767,120]
[322278872,1712929847295,-991.96,0.00069589,120]
[322278873,1712929847304,-991.96,0.0007041,120]
[322278874,1712929847314,-991.96,0.00071232,120]
[322278875,1712929847323,-7214.06036962,0.000999,120]
[322278878,1712930034165,12927.82873239,0.0002,2]
[322278881,1712930059644,5735.99265954,0.0002,2]
[322278882,1712930077390,155.0,0.00018,30]
[322278883,1712930080088,196.6824626,0.00021,2]
[322278884,1712930081886,467.98754676,0.00022,2]
[322278885,1712930082441,2544.39782332,0.0002,2]
[322278886,1712930159988,203.56170831,0.0002,2]
[322278890,1712930326889,587.39276369,0.0002,5]
[322278892,1712930368406,10980.2767523,0.0002,2]
[322278893,1712930389378,154.84515485,0.0002,2]
[322278894,1712930390500,1090.73352145,0.0002,2]
[322278895,1712930405408,254.61111614,0.0002,2]
[322278905,1712930502830,333.5,0.00023,10]
[322278909,1712930548216,264.78105654,0.00025612,7]
[322278910,1712930550096,2136.25414284,0.0002,5]
[322278911,1712930553267,847.80237586,0.0002,2]
[322278912,1712930553296,2562.33263355,0.0002,2]
[322278913,1712930606341,683.01401411,0.0002,2]
[322278915,1712930630806,264.78105654,0.000242,7]
[322278917,1712930643109,24900.0,0.00023802,2]
[322278918,1712930648752,264.78105654,0.00024994,7]
[322278919,1712930668749,279.61182814,0.00024994,7]
[322278921,1712930693097,642.46102767,0.00024097,2]
[322278923,1712930778146,9377.4747786,0.00023377,2]
[322278925,1712930809824,647.28324227,0.00024088,2]
[322278926,1712930817414,158.23031001,0.00024083,2]
[322278927,1712930845103,-470.34138776,0.00024177,2]
[322278928,1712930845124,-687.6463722,0.00024178,2]
[322278929,1712930845146,-969.14303689,0.00024179,2]
[322278930,1712930846133,-556.41441148,0.00024179,2]
[322278931,1712930885234,250.0,0.0002318,2]
[322278932,1712930901359,363.95324741,0.00023601,2]
[322278933,1712930905384,867.61657023,0.00021702,2]
[322278936,1712930956121,-467.23792428,0.00024168,2]
[322278937,1712930956143,-1087.97739489,0.00024168,2]
[322278938,1712930956165,-300.0,0.00024169,2]
[322278939,1712930956187,-300.0,0.00024169,2]
[322278940,1712930956207,-2400.32576257,0.00024169,2]
[322278941,1712930968114,-188.75485878,0.00024167,2]
[322278942,1712930968135,-1671.78403731,0.00024167,2]
[322278943,1712930968158,-225.63849083,0.00024168,2]
[322278944,1712930968179,-20360.75139146,0.00024169,2]
[322278945,1712930968199,-518.66999202,0.0002417,2]
[322278946,1712930968220,-5787.41581827,0.0002417,2]
[322278947,1712930968240,-250.0,0.0002417,2]
[322278948,1712930968260,-1854.77424007,0.0002417,2]
[322278949,1712930968281,-207.39373908,0.00024171,2]
[322278950,1712930968302,-601.81614276,0.00024171,2]
[322278951,1712930968327,-1486.82464434,0.00024171,2]
[322278952,1712930968347,-1965.39904468,0.00024171,2]
[322278953,1712930968368,-874.98344823,0.00024172,2]
[322278954,1712930968389,-1931.90571888,0.00024172,2]
[322278955,1712930968409,-3293.28998897,0.00024172,2]
[322278956,1712930968430,-2094.57281327,0.00024173,2]
[322278957,1712930968451,-59022.10944715,0.00024174,2]
[322278958,1712930968471,-500.0,0.00024175,2]
[322278959,1712930968492,-235.71051644,0.00024175,2]
[322278960,1712930968513,-177.72211746,0.0002418,2]
[322278961,1712930968533,-232.13941662,0.0002418,2]
[322278962,1712930968552,-313.30093401,0.0002418,2]
[322278963,1712930968577,-430.25029913,0.00024185,2]
[322278964,1712930968601,-687.6463722,0.00024186,2]
[322278965,1712930968623,-718.237531,0.00024202,2]
[322278966,1712930968647,-200.0,0.0002461,2]
[322278967,1712930969943,364.86423922,0.00024166,2]
[322278968,1712930970168,172.83624833,0.00024172,2]
[322278969,1712930970638,381.92348676,0.00024172,2]
[322279034,1712931032664,-300.0,0.00024171,2]
[322279035,1712931032673,-300.0,0.00024171,2]
[322279037,1712931032683,-270.09998492,0.00024172,2]
[322279038,1712931032692,-7593.65965301,0.00024172,2]
[322279056,1712931038758,-250.0,0.0002417,2]
[322279057,1712931038767,-51428.44979414,0.00024172,2]
[322279058,1712931038777,-1442.84124764,0.00024172,2]
[322279059,1712931038786,-3019.88655805,0.00024172,2]
[322279060,1712931038795,-8301.764419,0.0002432,2]
[322279061,1712931038805,-1671.38044396,0.00024992,2]
[322279062,1712931038814,-225.63849083,0.00024993,2]
[322279063,1712931038824,-188.71573999,0.00024993,2]
[322279064,1712931038833,-2148.01414809,0.00024993,2]
[322279065,1712931038843,-601.81614276,0.00024993,2]
[322279066,1712931038855,-604.0169876,0.00024994,2]
[322279067,1712931038864,-156.85107966,0.00025,2]
[322279068,1712931038873,-176.67842,0.00025067,2]
[322279069,1712931038883,-154.86062544,0.0002561,2]
[322279070,1712931038892,-277.18296708,0.0002561,2]
[322279071,1712931038901,-154.86062544,0.0002561,2]
[322279072,1712931038910,-180.6549137,0.00025617,2]
[322279073,1712931038920,-22761.07715403,0.00025638,2]
[322279074,1712931038929,-158.23030998,0.00026172,2]
[322279075,1712931038938,-420.0,0.00026208,2]
[322279076,1712931038948,-420.0,0.00026588,2]
[322279077,1712931038956,-867.61657023,0.00026702,2]
[322279078,1712931038966,-158.62437047,0.00026888,2]
[322279079,1712931038975,-306.69514342,0.00026888,2]
[322279080,1712931038984,-154.84515485,0.00026888,2]
[322279081,1712931038993,-1547.07230791,0.00026888,2]
[322279082,1712931039002,-3608.64683983,0.00026888,2]
[322279083,1712931039011,-5270.642003,0.00026888,2]
[322279084,1712931039021,-407.88528427,0.00026888,2]
[322279086,1712931039032,-2937.70369238,0.00026888,2]
[322279088,1712931039047,-641.21299003,0.00026888,2]
[322279089,1712931039057,-301.08336384,0.00026988,2]
[322279091,1712931039067,-9570.45298558,0.00026998,2]
[322279093,1712931039078,-13636.37733717,0.00027,2]
[322279095,1712931039087,-642.46102766,0.00027227,2]
[322279097,1712931039098,-289.314665,0.00027397,2]
[322279098,1712931039108,-310.1707965,0.00027397,2]
[322279100,1712931039119,-166.912584,0.00027397,2]
[322279102,1712931039129,-973.1152521,0.000274,2]
[322279104,1712931039139,-725.11116397,0.000274,2]
[322279105,1712931039148,-624.87075593,0.00027489,2]
[322279107,1712931039157,-6026.37058644,0.000275,2]
[322279109,1712931039166,-158.23030998,0.00028261,2]
[322279111,1712931039176,-587.0,0.00028416,2]
[322279113,1712931039186,-185.73445743,0.00028668,2]
[322279115,1712931039196,-2122.71055525,0.00028668,2]
[322279116,1712931039206,-429.33714796,0.0002877,2]
[322279117,1712931039215,-620.2435378,0.00028864,2]
[322279118,1712931039224,-587.0,0.00029247,2]
[322279119,1712931039234,-160.090177,0.00029459,2]
[322279120,1712931039243,-200.022929,0.00029459,2]
[322279121,1712931039252,-1230.51077854,0.0002978,10]
[322279122,1712931039262,-13807.88155482,0.0003,5]
[322279123,1712931039271,-25815.1921255,0.0003,7]
[322279124,1712931039280,-505.99757321,0.00030136,2]
[322279125,1712931039289,-158.23030998,0.0003035,2]
[322279126,1712931039298,-642.46102766,0.00030357,2]
[322279127,1712931039308,-823.0,0.0003081,2]
[322279128,1712931039317,-867.61657023,0.00031702,2]
[322279129,1712931039326,-823.0,0.00032172,2]
[322279130,1712931039335,-158.23030998,0.00032438,2]
[322279131,1712931039345,-289.314665,0.00033165,2]
[322279132,1712931039356,-1152.0,0.00033406,2]
[322279133,1712931039365,-642.46102766,0.00033486,2]
[322279134,1712931039374,-158.23030998,0.00034527,2]
[322279135,1712931039383,-166.912584,0.00035225,2]
[322279136,1712931039393,-1152.0,0.00035389,2]
[322279137,1712931039403,-415.12604386,0.00035616,2]
[322279138,1712931039413,-304.659015,0.00035616,120]
[322279139,1712931039422,-154.84515485,0.00036217,2]
[322279140,1712931039431,-718.237531,0.00036303,2]
[322279141,1712931039441,-642.46102766,0.00036616,2]
[322279142,1712931039451,-158.23030998,0.00036616,2]
[322279143,1712931039460,-1287.63861822,0.00036616,2]
[322279144,1712931039470,-2741.0,0.00036686,35]
[322279145,1712931039479,-2741.0,0.00036696,35]
[322279146,1712931039488,-2741.0,0.00036706,35]
[322279147,1712931039497,-49851.79330615,0.00036713,5]
[322279148,1712931039506,-222.98459299,0.00036714,4]
[322279149,1712931039515,-176.65160974,0.00036714,4]
[322279150,1712931039525,-1844.62317268,0.00036714,4]
[322279151,1712931039534,-1931.90571888,0.00036714,4]
[322279152,1712931039543,-518.5419639,0.00036715,4]
[322279153,1712931039553,-396.15277393,0.00036715,4]
[322279154,1712931039562,-973.13404007,0.00036715,4]
[322279155,1712931039571,-1739716.56987925,0.00036716,60]
[322279282,1712931043804,-1854.77424007,0.00024171,2]
[322279283,1712931043814,-8007.23337035,0.00036713,60]
[322279335,1712931099888,256.23532869,0.00019,2]
[322279336,1712931133537,154.84515485,0.00019,2]
[322279337,1712931134840,19139.99712765,0.00019,2]
[322279338,1712931141021,16057.19851658,0.00019,2]
[322279339,1712931144343,691.04683546,0.00019,2]
[322279340,1712931149414,154.99992261,0.00019,2]
[322279341,1712931160833,19139.99712765,0.00019,2]
[322279342,1712931162361,691.04683546,0.00019,2]
[322279343,1712931165014,16057.19851658,0.00019,2]
[322279344,1712931167420,164.02986577,0.00019,2]
[322279345,1712931178833,2414.01663812,0.00019,2]
[322279346,1712931182337,457.05002993,0.00019,2]
[322279347,1712931189024,16038.89114153,0.00019,2]
[322279348,1712931196923,3654.84802288,0.0002,5]
[322279349,1712931199216,2862.35533021,0.00019,10]
[322279372,1712931397059,13912.02965687,0.00019,2]
[322279380,1712931819101,649.92327912,0.00019,2]
[322279382,1712931844507,581.30338295,0.00026172,5]
[322279383,1712931865986,9546.72609829,0.0002411,2]
[322279386,1712932032130,-601.81614276,0.00025606,2]
[322279387,1712932032153,-644.87902618,0.00025607,2]
[322279388,1712932111485,642.72043086,0.0002201,2]
[322279390,1712932147191,-407.97119397,0.00024602,2]
[322279391,1712932147213,-242.92908465,0.00024603,2]
[322279392,1712932147234,-300.0,0.00024604,2]
[322279393,1712932147255,-300.0,0.00024604,2]
[322279394,1712932147277,-875.47790871,0.00024604,2]
[322279395,1712932147298,-563.18202203,0.00024604,2]
[322279396,1712932147318,-250.0,0.00024605,2]
[322279397,1712932147339,-1931.90571888,0.00024605,2]
[322279398,1712932147363,-22761.07715403,0.00024605,2]
[322279399,1712932147384,-5308.20875292,0.00024606,2]
[322279447,1712932233714,-364.86423922,0.00024597,2]
[322279448,1712932233723,-151.34343712,0.00024598,2]
[322279449,1712932233771,-318.99795064,0.00024598,2]
[322279450,1712932233780,-282.52694059,0.00024598,2]
[322279451,1712932233790,-260.52844265,0.00024598,2]
[322279452,1712932233799,-300.0,0.00024599,2]
[322279453,1712932233808,-300.0,0.00024599,2]
[322279454,1712932233818,-154.86062544,0.00024599,2]
[322279456,1712932233828,-6912.93110096,0.000246,2]
[322279457,1712932233837,-6912.93110096,0.000246,2]
[322279459,1712932233847,-2403.67570143,0.000246,2]
[322279482,1712932238619,-4509.25539953,0.000246,2]
[322279483,1712932238628,-6912.93110096,0.000246,2]
[322279484,1712932238638,-19591.79124708,0.00024606,2]
[322279485,1712932238647,-2565.08396276,0.00025095,2]
[322279486,1712932238657,-3816.51542658,0.00025603,2]
[322279487,1712932238666,-220.30796474,0.00025607,2]
[322279488,1712932238676,-1486.82464434,0.00025608,2]
[322279489,1712932238685,-500.0,0.00025608,2]
[322279490,1712932238694,-500.0,0.00025608,2]
[322279491,1712932238703,-330.33664003,0.00025608,2]
[322279492,1712932238712,-3953.66167037,0.00025615,2]
[322279493,1712932238721,-1619.55496636,0.00025617,2]
[322279494,1712932238730,-200.0,0.00025624,2]
[322279495,1712932238739,-596.725063,0.00026276,2]
[322279496,1712932238748,-1942.1971709,0.00026479,2]
[322279497,1712932238757,-420.0,0.0002666,2]
[322279498,1712932238766,-642.72043086,0.0002701,2]
[322279499,1712932238775,-420.0,0.00027059,2]
[322279500,1712932238784,-604.30918048,0.00027074,3]
[322279501,1712932238793,-157.3190577,0.00027174,2]
[322279502,1712932238802,-182.96331992,0.00027288,2]
[322279503,1712932238811,-200.361075,0.00027397,2]
[322279504,1712932238820,-157.507641,0.00027397,2]
[322279505,1712932238829,-160.876032,0.00027397,2]
[322279506,1712932238840,-164.257374,0.00027397,2]
[322279507,1712932238850,-725.11116397,0.000274,2]
[322279508,1712932238859,-624.87075593,0.00027489,2]
[322279509,1712932238868,-237.14597222,0.00027533,2]
[322279510,1712932238877,-157.31905763,0.00028323,2]
[322279511,1712932238887,-160.876032,0.00028466,2]
[322279512,1712932238896,-620.2435378,0.00028864,2]
[322279513,1712932238906,-587.0,0.00028894,2]
[322279514,1712932238915,-160.090177,0.00029459,2]
[322279515,1712932238924,-200.022929,0.00029459,2]
[322279516,1712932238933,-157.31905763,0.00029472,2]
[322279517,1712932238942,-160.876032,0.00029534,2]
[322279518,1712932238951,-587.0,0.00029765,2]
[322279519,1712932238960,-446.75242115,0.00029926,2]
[322279520,1712932238969,-160.876032,0.00030603,2]
[322279521,1712932238978,-157.31905763,0.00030621,2]
[322279522,1712932238987,-648.46524495,0.00030654,2]
[322279523,1712932238996,-823.0,0.00031315,2]
[322279524,1712932239005,-150.0,0.000315,2]
[322279525,1712932239014,-157.31905763,0.0003177,2]
[322279526,1712932239023,-808.58214958,0.00031999,4]
[322279527,1712932239033,-1211.03128397,0.00032,2]
[322279529,1712932239043,-1210.91030182,0.00032,2]
[322279530,1712932239054,-642.72043086,0.0003201,2]
[322279532,1712932239063,-648.46524495,0.00032081,2]
[322279534,1712932239072,-823.0,0.00032742,2]
[322279536,1712932239082,-157.31905763,0.00032918,2]
[322279538,1712932239095,-482.30976099,0.0003304,30]
[322279540,1712932239104,-200.361075,0.00033165,2]
[322279542,1712932239114,-648.46524495,0.00033508,2]
[322279544,1712932239123,-1210.91030182,0.0003392,2]
[322279546,1712932239133,-1078.0,0.00033938,2]
[322279548,1712932239142,-465.00692251,0.00034,4]
[322279550,1712932239153,-157.31905763,0.00034067,2]
[322279552,1712932239163,-250.0,0.00034389,2]
[322279554,1712932239172,-505.99757321,0.0003439,2]
[322279555,1712932239181,-155.04640555,0.00034875,4]
[322279557,1712932239191,-419.0,0.000349,3]
[322279560,1712932239200,-166.2585523,0.00034933,7]
[322279561,1712932239210,-648.46524495,0.00034934,2]
[322279564,1712932239219,-596.49961109,0.00035,2]
[322279565,1712932239229,-155.0111462,0.00035015,7]
[322279567,1712932239239,-157.31905763,0.00035216,2]
[322279569,1712932239248,-155.0111462,0.00035277,7]
[322279572,1712932239258,-155.0111462,0.00035528,7]
[322279574,1712932239267,-415.12604386,0.00035616,2]
[322279575,1712932239276,-1360.387128,0.00035616,120]
[322279578,1712932239286,-1427.20186293,0.0003584,6]
[322279579,1712932239295,-1332.001332,0.0003584,6]
[322279581,1712932239306,-153.0,0.00035978,2]
[322279583,1712932239315,-153.0,0.00035978,2]
[322279585,1712932239325,-153.0,0.00035978,2]
[322279587,1712932239334,-153.0,0.00035978,2]
[322279589,1712932239345,-153.0,0.00035978,2]
[322279591,1712932239354,-153.0,0.00035978,2]
[322279593,1712932239363,-153.0,0.00035978,2]
[322279595,1712932239373,-153.0,0.00035978,2]
[322279597,1712932239382,-153.0,0.00035978,2]
[322279599,1712932239394,-153.0,0.00035978,2]
[322279601,1712932239404,-153.0,0.00035978,2]
[322279603,1712932239414,-1152.0,0.00036016,2]
[322279605,1712932239422,-648.46524495,0.00036361,2]
[322279607,1712932239432,-1610.88386058,0.00036361,2]
[322279609,1712932239440,-157.31905763,0.00036365,2]
[322279611,1712932239450,-2999.99999999,0.0003638,7]
[322279613,1712932239459,-1177.22260241,0.00036418,2]
[322279615,1712932239469,-1010.0,0.0003642,35]
[322279617,1712932239478,-1010.0,0.0003643,35]
[322279619,1712932239487,-275.74891212,0.00036439,15]
[322279621,1712932239497,-1010.0,0.0003644,35]
[322279623,1712932239506,-425.38105306,0.00036448,4]
[322279625,1712932239515,-482.57987634,0.00036448,4]
[322279627,1712932239525,-2122.71055525,0.00036448,4]
[322279629,1712932239534,-185.73445743,0.00036448,4]
[322279631,1712932239543,-188.6336911,0.00036448,2]
[322279633,1712932239552,-211.40870572,0.00036448,4]
[322279635,1712932239562,-3656.46031129,0.00036448,4]
[322279637,1712932239571,-442.37211124,0.00036448,4]
[322279639,1712932239580,-433.88403155,0.00036448,4]
[322279641,1712932239590,-334.20602818,0.00036448,4]
[322279643,1712932239599,-193.67870914,0.00036448,4]
[322279645,1712932239608,-1594.36018876,0.00036458,4]
[322279647,1712932239617,-242.47019394,0.00036458,4]
[322279649,1712932239626,-162.48,0.00036458,2]
[322279651,1712932239636,-162.48,0.00036458,2]
[322279653,1712932239645,-382.51737651,0.00036459,4]
[322279655,1712932239654,-511.0,0.00036459,4]
[322279657,1712932239663,-407.87381575,0.00036459,4]
[322279659,1712932239673,-77573.86193585,0.00036459,5]
[322279661,1712932239683,-28382.38761875,0.00036459,4]
[322279663,1712932239693,-2951431.38421926,0.00036461,60]
[322279774,1712932240923,-24709.27963655,0.00036461,60]
[322279776,1712932240935,-8994.02802883,0.00036461,60]
[322279779,1712932240946,-114006.98869905,0.00036461,60]
[322281099,1712932253987,167.16762202,0.00023868,2]
[322284254,1712932296548,522.7857071,0.00024998,4]
[322284279,1712932637531,522.7857071,0.00024871,4]
[322284289,1712932798309,298.362531,0.00023856,2]
[322284293,1712932850817,423.3179575,0.00023849,2]
[322284296,1712932873166,200.0,0.00023845,2]
[322284302,1712932921787,482.30976099,0.0002387,5]
[322284315,1712933037318,924.58309857,0.0002387,2]
[322284319,1712933094253,12147.19898264,0.00023726,2]
[322284320,1712933094285,12752.80101736,0.00023726,2]
[322284326,1712933110807,5746.9150373,0.00023724,2]
[322284355,1712933238161,-188.75485878,0.0002417,2]
[322284356,1712933238181,-601.81614276,0.0002417,2]
[322284357,1712933238201,-922.2482996,0.0002417,2]
[322284363,1712933298609,385.178804,0.00023172,2]
[322284366,1712933317441,717.68581065,0.0002177,2]
[322284370,1712933355326,7810.6915037,0.00023156,2]
[322284435,1712933431895,-1547.07230791,0.00024141,2]
[322284437,1712933431906,-193.14313214,0.00024141,2]
[322284439,1712933431916,-154.86062544,0.00024141,2]
[322284441,1712933431928,-601.81614276,0.00024141,2]
[322284443,1712933431938,-211.55365242,0.00024142,2]
[322284445,1712933431948,-5570.46935089,0.00024142,2]
[322284446,1712933431958,-277.24658734,0.00024142,2]
[322284448,1712933431967,-947.91686564,0.00024142,2]
[322284450,1712933431976,-185.73445743,0.00024142,2]
[322284452,1712933431985,-3.32113684,0.00024143,2]
[322284544,1712933437842,-154.86062544,0.0002414,2]
[322284546,1712933437851,-181.18098361,0.0002414,2]
[322284557,1712933437947,-188.75485878,0.0002414,2]
[322284559,1712933437957,-207.39373908,0.0002414,2]
[322284561,1712933437966,-584.82871279,0.00024141,2]
[322284562,1712933437975,-361.13014743,0.00024141,2]
[322284564,1712933437983,-282.52694059,0.00024141,2]
[322284565,1712933437992,-900.09826635,0.00024141,2]
[322284567,1712933438001,-1491.04666292,0.00024143,2]
[322284569,1712933438013,-470.34138776,0.00024143,2]
[322284571,1712933438022,-304.0246345,0.00024144,2]
[322284573,1712933438031,-3738.27761337,0.00024144,2]
[322284575,1712933438041,-158.62437047,0.00024144,2]
[322284577,1712933438050,-874.98344823,0.00024144,2]
[322284579,1712933438059,-154.86062544,0.00024144,2]
[322284581,1712933438068,-687.6463722,0.00024144,2]
[322284583,1712933438077,-154.86062544,0.00024144,2]
[322284585,1712933438086,-1965.39904468,0.00024145,2]
[322284587,1712933438095,-2581.83470807,0.00024145,2]
[322284589,1712933438105,-364.86423922,0.00024145,2]
[322284591,1712933438114,-1931.90571888,0.00024145,2]
[322284593,1712933438123,-300.0,0.00024145,2]
[322284595,1712933438132,-300.0,0.00024145,2]
[322284597,1712933438141,-215.92726216,0.00024146,2]
[322284599,1712933438150,-875.47790871,0.00024146,2]
[322284601,1712933438159,-1854.77424007,0.00024146,2]
[322284603,1712933438168,-936.73565596,0.00024146,2]
[322284605,1712933438177,-22761.07715403,0.00024146,2]
[322284607,1712933438187,-407.97119397,0.00024146,2]
[322284609,1712933438196,-2937.70369238,0.00024146,2]